Cogmind - Beta 10.2 @@@ ROGUE MODE // 2020.11.12 @ 12:31:27 // Halloween2020/ForbiddenLore Player: Demise Result: Destroyed by as-49985 with Assembled Maul Performance ------------- Evolutions (0) 0 Regions Visited (2) 400 Robots Destroyed (30) 150 Value Destroyed (364) 364 Prototype IDs (2) 40 Alien Tech Used (0) 0 Bonus (-51) -51 TOTAL SCORE: 903 Bonus ------- Friendly Fire -51 Cogmind --------- Core Integrity 0/250 Matter 229/300 Energy 70/100 System Corruption 5% Temperature Cool (0) Movement Treading (160) Location -10/Mines Parts ------- > --- POWER (1) -------- (None) > --- PROPULSION (2) --- Light Treads Light Treads > --- UTILITY (2) ------ Large Storage Unit Large Storage Unit > --- WEAPON (2) ------- (None) > --- INVENTORY (16) --- Sensor Array Signal Interpreter Targeting Computer Light Armor Plating Light Armor Plating Assault Rifle Assault Rifle Heavy Assault Rifle Autogun Autogun Autogun EMP Blaster Datajack Mining Laser Peak State ------------ > --- POWER ------------ Ion Engine > --- PROPULSION ------- Light Treads Compact Wheel > --- UTILITY ---------- Large Storage Unit Large Storage Unit > --- WEAPON ----------- Autogun Autogun > --- INVENTORY -------- Light Treads Light Treads Improved Heat Sink Medium Storage Unit Sensor Array Signal Interpreter Improved Terrain Scanner Assault Rifle Assault Rifle Autogun Autogun Light Cannon Light Cannon EMP Blaster Grenade Launcher Datajack [Rating: 11] Favorites ----------- Power Ion Engine Engine Ion Engine Propulsion Light Treads Treads Light Treads Leg Aluminum Leg Wheel Compact Wheel Utility Large Storage Unit Device Improved Terrain Scanner Storage Large Storage Unit Weapon Autogun Energy Gun EM Pulse Gun Ballistic Gun Autogun Launcher Grenade Launcher Build | -11 -10 -10 ------- Run | Scr Mat Min Slots Evolved . | . . . Power . | . . . Propulsion . | . . . Utility . | . . . Weapon . | . . . Parts Attached 18 | 1 10 7 Power 3 | . 1 2 Engine 3 | . 1 2 Core . | . . . Reactor . | . . . Propulsion 6 | . 2 4 Treads 5 | . 1 4 Leg . | . . . Wheel 1 | . 1 . Hover . | . . . Flight . | . . . Utility 3 | 1 2 . Device 1 | 1 . . Storage 2 | . 2 . Processor . | . . . Hackware . | . . . Protection . | . . . Artifact . | . . . Weapon 6 | . 5 1 Energy Gun 2 | . 2 . Energy Cannon . | . . . Ballistic Gun 2 | . 2 . Ballistic Cannon . | . . . Launcher 2 | . 1 1 Special Weapon . | . . . Impact Weapon . | . . . Slashing Weapon . | . . . Piercing Weapon . | . . . Special Melee Weapon . | . . . Unidentified Prototypes . | . . . Parts Lost 7 | . 1 6 Power 2 | . . 2 Propulsion 2 | . . 2 Utility . | . . . Weapon 3 | . 1 2 Highest Loss Streak 5 | . 1 5 Average Slot Usage (%) 97 | . 99 94 Engine 12 | . 14 8 Treads 17 | . 13 25 Wheel 9 | . 13 2 Device 3 | . 5 . Storage 24 | . 22 28 Energy Gun 15 | . 23 . Ballistic Gun 12 | . 4 27 Naked Turns . | . . . Heaviest Build 43 | 11 43 43 Greatest Support 40 | 20 20 40 Greatest Overweight (x) 2 | . 2 2 Average Overweight (x) 1 | . 1 . Largest Inventory Capacity 16 | 6 16 16 Average Capacity 13 | 6 12 16 Most Carried 16 | 6 16 16 Average Carried 12 | 6 11 15 Final Capacity 16 | 6 16 16 Final Carried 16 | 6 16 14 Class Distribution -------------------- 100% | Mutant Dominant Class ---------------- Mutant | -10/Materials Mutant | -10/Mines Resources | -11 -10 -10 ----------- Run | Scr Mat Min Matter Collected 560 | 210 118 232 Remotely . | . . . Salvage Created 799 | 120 486 193 Parts 62 | 5 35 22 Haulers Intercepted 2 | . 2 . Recyclers Shooed . | . . . Parts Field Recycled . | . . . Retrieved Matter . | . . . Parts Self-Destructed . | . . . Prevented . | . . . Kills | -11 -10 -10 ------- Run | Scr Mat Min Combat Hostiles Destroyed 21 | . 9 12 Guns 14 | . 7 7 AOE 7 | . 2 5 Classes Destroyed 9 | 2 5 2 Worker 4 | . 3 1 Tunneler 2 | 1 . 1 Hauler 2 | . 2 . Recycler 2 | 1 1 . Operator 1 | . . 1 Watcher 3 | . 3 . Swarmer 12 | . 6 6 Grunt 4 | . 3 1 Assembled 5 | . . 5 Best Kill Streak 5 | 2 5 5 Combat Bots Only 5 | . 3 5 Max Kills in Single Turn 4 | 1 4 4 Gunslinging 1 | . . 1 Exploded 4 | . 2 4 Melee . | . . . Uniques/NPCs Destroyed . | . . . Combat | -11 -10 -10 -------- Run | Scr Mat Min Damage Taken 1217 | . 240 977 Core 252 | . 52 200 Absorbed by Shields . | . . . Core Remaining (%) 100 | 100 . . Volleys Fired 68 | 3 35 30 Largest 2 | 2 2 2 Hottest 105 | 80 105 53 Shots Fired 135 | 6 69 60 Gun 131 | 6 68 57 Cannon . | . . . Launcher 4 | . 1 3 Special . | . . . Kinetic 59 | . 2 57 Thermal 36 | 3 33 . Explosive 4 | . 1 3 Electromagnetic 36 | 3 33 . Robot Hit Streak 8 | 2 6 8 Robot Miss Streak 5 | 2 5 3 Penetration Max . | . . . Secondary Targets 3 | . . 3 Max Gunslinging Chain 1 | . . 1 Shots Hit Robots 69 | 3 32 34 Core Hits 59 | 3 24 32 Critical Hits . | . . . Critical Kills . | . . . Critical Parts Destroyed . | . . . Melee Attacks . | . . . Impact . | . . . Slashing . | . . . Piercing . | . . . Sneak Attacks . | . . . Combat Hostiles . | . . . Follow-up Attacks . | . . . Damage Inflicted 1594 | 37 760 797 Guns 938 | 37 442 459 Cannons . | . . . Explosions 656 | . 318 338 Melee . | . . . Ramming . | . . . Kinetic 487 | . 28 459 Thermal 301 | 22 279 . Explosive 524 | . 186 338 Electromagnetic 282 | 15 267 . Impact . | . . . Slashing . | . . . Piercing . | . . . Highest Corruption 5 | . . 5 Average Corruption 1 | . . 1 Corruption Purged . | . . . Effects 1 | . . 1 Targeting Errors 1 | . . 1 Overload Shots . | . . . Overflow Damage 7 | . . 7 Projectiles . | . . . Explosions 7 | . . 7 Melee . | . . . Knockbacks . | . . . Impact . | . . . Kinetic . | . . . Secondary . | . . . Self-Inflicted Damage 94 | . 36 58 Shots 3 | . 1 2 Rammed . | . . . Targets Rammed . | . . . Kicked . | . . . Crushed . | . . . Highest Temperature 262 | 56 262 38 Average Temperature 51 | 25 65 10 Received Heat Transfer 251 | . 81 170 Effects 1 | . 1 . Energy Bleed 1 | . 1 . Siege Activations . | . . . Robots Corrupted . | . . . Combat Hostiles . | . . . Parts Fried 1 | . 1 . Impact Corruptions . | . . . Robots Melted . | . . . Combat Hostiles . | . . . Parts Melted . | . . . Heat Transferred 548 | 50 498 . Parts Sabotaged . | . . . Parts Stolen . | . . . Parts Stripped . | . . . Power Chain Reactions 2 | . 2 . Missiles Intercepted . | . . . Alert | -11 -10 -10 ------- Run | Scr Mat Min Peak Influence 257 | 10 257 231 Initial 21 | . 6 21 Average 99 | 8 101 99 Maximum Alert Level 1 | . 1 1 Low Security (%) 89 | 100 84 98 Level 1 10 | . 15 1 Level 2 . | . . . Level 3 . | . . . Level 4 . | . . . Level 5 . | . . . High Security . | . . . Max Security . | . . . Squads Dispatched . | . . . Investigation . | . . . Extermination . | . . . Reinforcement . | . . . Assault . | . . . Garrison . | . . . Intercept . | . . . Construction Impeded . | . . . Haulers Reinforced . | . . . Stealth | -11 -10 -10 --------- Run | Scr Mat Min Distress Signals 2 | . 2 . Communications Jammed . | . . . Distress Signals . | . . . Times Spotted 37 | . 16 21 Peak Tracking Total 10 | . 4 10 Tactical Retreats 3 | . . 3 Traps | -11 -10 -10 ------- Run | Scr Mat Min Traps Triggered . | . . . Indirectly . | . . . Trap Hack Attempts . | . . . Triggered . | . . . Disarmed . | . . . Reprogrammed . | . . . Reused . | . . . Traps Extracted . | . . . Installed . | . . . Triggered . | . . . Machines | -11 -10 -10 ---------- Run | Scr Mat Min Machines Disabled . | . . . Max in Single Turn . | . . . Machines Sabotaged . | . . . Garrisons Compromised . | . . . Overloaded Fab Kills . | . . . Fab Network Shutdowns . | . . . Hacking | -11 -10 -10 --------- Run | Scr Mat Min Machines Accessed 8 | . 7 1 Terminals 8 | . 7 1 Fabricators . | . . . Repair Stations . | . . . Recycling Units . | . . . Scanalyzers . | . . . Garrison Access . | . . . Total Hacks 25 | . 20 5 Successful 18 | . 16 2 Failed 6 | . 3 3 Catastrophic . | . . . Database Lockouts 1 | . 1 . Manual 18 | . 13 5 Terminals 25 | . 20 5 Fabricators . | . . . Repair Stations . | . . . Recycling Units . | . . . Scanalyzers . | . . . Garrison Access . | . . . Terminal Hacks 12 | . 10 2 Part Schematic 2 | . . 2 Robot Analysis 1 | . 1 . Prototype ID Bank 1 | . 1 . Branch Access Points 1 | . 1 . Terminal Index 1 | . 1 . Maintenance Status 1 | . 1 . Surveillance Status 1 | . 1 . Hauler Manifests 1 | . 1 . Registered Components 1 | . 1 . Registered Prototypes 1 | . 1 . Zone Layout 1 | . 1 . Fabricator Hacks . | . . . Repair Station Hacks . | . . . Recycling Unit Hacks . | . . . Scanalyzer . | . . . Garrison Access Hacks . | . . . Unauthorized Hacks 6 | . 6 . Terminals 6 | . 6 . Track 1 | . 1 . Assimilate 1 | . 1 . Botnet 3 | . 3 . Operators 1 | . 1 . Fabricators . | . . . Repair Stations . | . . . Recycling Units . | . . . Scanalyzers . | . . . Garrison Access . | . . . Data Cores Recovered . | . . . Used . | . . . Hacking Detections 7 | . 6 1 Full Trace Events . | . . . Feedback Events . | . . . Feedback Blocked . | . . . Robot Schematics Acquired . | . . . Robots Built . | . . . Matter . | . . . Time . | . . . Total Robot Build Rating . | . . . Part Schematics Acquired 2 | . . 2 Parts Built . | . . . Matter . | . . . Time . | . . . Total Part Build Rating . | . . . Parts Repaired . | . . . Time . | . . . Parts Recycled . | . . . Recycled Matter . | . . . Retrieved Matter . | . . . Retrieved Components . | . . . Parts Scanalyzed . | . . . Part Schematics Acquired . | . . . Parts Damaged . | . . . Bothacking | -11 -10 -10 ------------ Run | Scr Mat Min Used RIF Installer . | . . . Robots Hacked . | . . . Non-combat . | . . . Combat . | . . . Robot Hacks Applied . | . . . Relay Couplers Released . | . . . Robots Rewired . | . . . Allies Hacked . | . . . Hacks Repelled . | . . . Allies | -11 -10 -10 -------- Run | Scr Mat Min Total Allies 1 | . 1 . Largest Group 1 | . 1 1 Highest-Rated Group 10 | . 10 10 Highest-Rated Ally 10 | . 10 10 Total Orders . | . . . Ally Attacks . | . . . Total Damage . | . . . Kills . | . . . Allies Corrupted . | . . . Allies Melted . | . . . Intel | -11 -10 -10 ------- Run | Scr Mat Min Robot Analysis Total 1 | . 1 . Derelict Logs Recovered 1 | . . 1 Drone Launches . | . . . Drone Recoveries . | . . . Exploration | -11 -10 -10 ------------- Run | Scr Mat Min Turns Passed 1638 | 25 1031 582 Spaces Moved 1057 | 13 756 288 Core . | . . . Treads 250 | . . 250 Legs 25 | 13 12 . Wheels 782 | . 744 38 Hover . | . . . Flight . | . . . Fastest Speed 100 | 120 100 120 Average Speed 126 | 120 111 164 Slowest Speed 200 | 120 120 200 Overloaded Moves . | . . . Propulsion Burnouts . | . . . Robots Hopped . | . . . Cave-ins Triggered . | . . . Exploration Rate (%) 51 | 2 96 55 Regions Visited 2 Branch Regions 1 Pre-discovered Areas . | . . . Known Exits Taken 1 | . 1 . Unknown Exits Taken 1 | 1 . . Scrap Searched . | . . . Spaces Dug . | . . . Terrain Destroyed 39 | . 20 19 Melee . | . . . Projectile . | . . . AOE 39 | . 20 19 Terrain Rammed . | . . . Walls Destroyed . | . . . Machines Disabled . | . . . Actions | -11 -10 -10 --------- Run | Scr Mat Min Total 1243 | 16 878 349 Wait 54 | . 43 11 Move 1055 | 12 755 288 Hop . | . . . Pick Up 25 | . 20 5 Fast Attach 8 | 1 4 3 Attach 3 | . 1 2 Detach 1 | . 1 . Swap 7 | . 5 2 Drop 22 | . 14 8 Fire 68 | 3 35 30 Melee . | . . . Ram . | . . . Kick . | . . . Crush . | . . . Escape Stasis . | . . . Rewire . | . . . Trap . | . . . Miscellaneous . | . . . Route ------- -11/Scrapyard -10/Materials (discovered 4 exits: *Mat x3 / *Min) -10/Mines (discovered 2 exits: *Mat x2) History --------- Turn | Location | Event 11 | -11/Scrapyard | Discovered new exit (range 2) 26 | -11/Scrapyard | Entered Materials 242 | -10/Materials | Discovered new exit (range 11) 311 | -10/Materials | Build established: Mutant 316 | -10/Materials | Discovered new exit (range 8) 386 | -10/Materials | Identified exit to Mines 411 | -10/Materials | Discovered new exit (range 12) 725 | -10/Materials | Discovered new exit (range 16) 872 | -10/Materials | Central database locked down 1057 | -10/Materials | Entered Mines 1057 | -10/Mines | Accompanied by 1 ally 1093 | -10/Mines | Discovered new exit (range 4) 1119 | -10/Mines | Joined a pair of Derelicts in attacking an 0b10 outpost 1223 | -10/Mines | Identified exit to Materials 1579 | -10/Mines | Assembled infested the area 1622 | -10/Mines | Core integrity fell below 50% 1635 | -10/Mines | Core integrity fell below 20% 1639 | -10/Mines | Destroyed by as-49985 with Assembled Maul Last Messages --------------- 01612_ K-01 Serf destroyed. 01624_ as-71556 sneak attacks. 01624_ U-05 Engineer system corrupted by crushing effect. 01625_ U-05 Engineer system terminally corrupted. 01630_ Ion Engine destroyed. 01630_ Lgt. Treads destroyed. 01630_ System corrupted by crushing effect (+1). 01631_ as-71556 destroyed. 01631_ Destroyed Asb. Hover Unit. 01631_ as-65195 destroyed. 01631_ as-11412 destroyed. 01631_ Destroyed Asb. Hover Unit. 01631_ as-91302 destroyed. 01633_ The unstable cave ceiling collapses. 01634_ System corrupted: Grenade Launcher targeting data glitched. 01634_ as-00130 destroyed. 01636_ Grenade Launcher destroyed. 01636_ Lgt. Treads destroyed. 01638_ Autogun destroyed. 01638_ System corrupted by crushing effect (+4). Map ----- +----------------------------------------------------+ | ##?# ?#????????????????????????????????? | | ### #????????????????????????????????? | | #?????????????????????????????????? | | # % #???????####??????????????????????? | | ## ## ## #??????? ???????????????????????? | | ?#% #???#??? %#??????# #???????????????????????? | | ?# #???????# #??????# #???????????????????????? | | ## ##??????# #????### #???????? ??????????????? | | # ##?????# #??### #??????? "??????????????? | | % #?????# #### ##???? ??????????????? | | ## #?????# #### ?????????????? | | ?# #?????## ### #?????????????? | | ?# ##??????# #?## #??????????????? | | ?## ##??????#!#??# ##### ?????????????????? | | ??# ###????# #??## #??????????????????????? | | ??# ##???#=#???## ##?????????????????????? | | ??## #???# #????# #?????????????????????? | | ???# ##### #????# #?????????????????????? | | ???# #????# ###????????????????????? | | ???## ######????# %a #????????????????????? | | ????# = ##?????????## ######???????????????? | | #####=*###???????????# #???????????????? | | #?????????????## #???????????????? | | #??????????????## % ## #???????????????? | | ### ###???????????????#aaa #????????????????????? | | #?# #?????????????????# @a #????????????????????? | | ### #????????????????# ###????????????????????? | | #????????????????### ##?????????????????????? | | ####??????????????????# #??????????????????????? | | ####################### #??????????????????????? | | == = =* ## #??????????????????????? | | | ! [ """ """ ## #??????????????????????? | | ######### """ """ ## #??????????????????????? | | ##???????# """ """ ## #??????????????????????? | | ####????????# #? ???????????????????????? | | #???????????# """ """ #? ???????????????????????? | | #???????????# """ """ #? ???????????????????????? | | #???????????# """ """ #? ???????????????????????? | | #???????????# #? ???????????????????????? | | #???????????# """ """ #? ???????????????????????? | | #???????????# """ """ #? ???????????????????????? | | #???????????# """ """ #?????????????????????????? | | ????????????# #?????????????????????????? | | ????????????############?????????????????????????? | | ?????????????????????????????????????????????????? | | ?????????????????????????????????????????????????? | | ?????????????????????????????????????????????????? | | ?????????????????????????????????????????????????? | | ?????????????????????????????????????????????????? | | ?????????????????????????????????????????????????? | +----------------------------------------------------+ Best States ------------- Heat Dissipation 25 Energy Generation 10 Energy Capacity 250 Matter Stores 300 Matter Capacity 300 Sight Range 16 Terrain Scan Range 16 Terrain Scan Density 10 Evasion (%) 40 Recoil Reduction 2 Item Schematics ----------------- Hcp. Storage Unit | -10/Mines | Hacked Lrg. Storage Unit | -10/Mines | Hacked Robot Schematics ------------------ None Fabricated ------------ Nothing Alien Tech Used ----------------- None Achievements -------------- None Challenges ------------ None Game ------ Seed ProcessingTransmissionSystem Manual? 0 Play Time 00:19:10 Cumulative 92.6 hours Start 2020.11.12 @ 12:15:47 End 2020.11.12 @ 12:31:27 Sessions 1 Manual Loads 0 Difficulty Rogue Special Mode Halloween2020/ForbiddenLore Game No. 82 Rogue 82 Adventurer 0 Explorer 0 Win Type - Total 0 Types 0/0/0/0/0/0/0/0/0 Lore% 48 Gallery% 56 Achievement% 52 Wizard Run 0 Options --------- ASCII 0 Keyboard 1 Movement Numpad Keybinds 0 Fullscreen 1 Font 12/Terminus Map View 83x54 Tactical HUD 1 Map Filters NONE Filters NONE Steam 1 RUN: c850435b-e20e-4e9b-9c29-08ebb4121699